fUSD/lending_fUSD_20250530
["ID","MTS","AMOUNT","RATE_DAILY","PERIOD"]
[363070655,1748566257914,-420.0,0.00022191,2]
[363070656,1748566257923,-1541.88,0.00022191,2]
[363070657,1748566257933,-420.0,0.00022191,2]
[363070658,1748566257942,-445.99298664,0.00022191,2]
[363070659,1748566257952,-420.0,0.00022191,2]
[363070660,1748566257961,-420.0,0.00022191,2]
[363070661,1748566257970,-423.78,0.00022191,2]
[363070662,1748566257980,-1587.83,0.00022191,2]
[363070663,1748566257989,-15979.7,0.00022191,2]
[363070664,1748566257999,-1581.03,0.00022191,2]
[363070665,1748566258008,-1125.95,0.00022191,2]
[363070666,1748566258018,-420.0,0.00022191,2]
[363070667,1748566258027,-609.25551301,0.00022191,2]
[363070668,1748566258042,-1647.14448699,0.00022191,2]
[363070669,1748566258051,-124.43804461,0.00022191,2]
[363070670,1748566258063,-612.29195539,0.00022191,2]
[363070671,1748566258072,-420.0,0.00022191,2]
[363070672,1748566258082,-420.0,0.00022191,2]
[363070673,1748566258091,-151.0,0.00022191,7]
[363070674,1748566258101,-420.0,0.00022191,2]
[363070675,1748566258110,-496.88,0.00022191,2]
[363070676,1748566258120,-420.0,0.00022191,2]
[363070677,1748566258131,-420.0,0.00022191,2]
[363070678,1748566258140,-7523.59,0.00022191,2]
[363070679,1748566258149,-1708.87,0.00022191,2]
[363070680,1748566258159,-5051.34,0.00022191,2]
[363070681,1748566258167,-1084.04,0.00022191,2]
[363070682,1748566258175,-420.0,0.00022191,2]
[363070683,1748566258183,-420.0,0.00022191,2]
[363070684,1748566258192,-420.0,0.00022191,2]
[363070685,1748566258201,-6141.86,0.00022191,2]
[363070686,1748566258210,-420.0,0.00022191,2]
[363070687,1748566258220,-420.0,0.00022191,2]
[363070688,1748566258229,-420.0,0.00022191,2]
[363070689,1748566258238,-420.0,0.00022191,2]
[363070690,1748566258248,-9634.8,0.00022191,2]
[363070691,1748566258257,-420.0,0.00022191,2]
[363070692,1748566258267,-400.04414814,0.00022191,2]
[363070693,1748566258277,-420.0,0.00022191,2]
[363070694,1748566258286,-420.0,0.00022191,2]
[363070695,1748566258295,-577.99,0.00022191,2]
[363070696,1748566258305,-345.92811037,0.00022191,2]
[363070697,1748566258317,-74.07188963,0.00022191,2]
[363070698,1748566258327,-868.66,0.00022191,2]
[363070699,1748566258336,-420.0,0.00022191,2]
[363070700,1748566258345,-420.0,0.00022191,2]
[363070701,1748566258354,-420.0,0.00022191,2]
[363070702,1748566258363,-630.69,0.00022191,2]
[363070703,1748566258375,-1184.45,0.00022191,2]
[363070704,1748566258384,-852.49877351,0.00022191,2]
[363070705,1748566258400,-830.46122649,0.00022191,2]
[363070706,1748566258409,-1711.76,0.00022191,2]
[363070707,1748566258419,-151.0,0.00022191,7]
[363070708,1748566258428,-420.0,0.00022191,2]
[363070709,1748566258437,-420.0,0.00022191,2]
[363070710,1748566258447,-420.0,0.00022191,2]
[363070711,1748566258456,-2394.14,0.00022191,2]
[363070712,1748566258466,-1523.44,0.00022191,2]
[363070713,1748566258476,-420.0,0.00022191,2]
[363070714,1748566258488,-1240.6,0.00022191,2]
[363070715,1748566258501,-157.80025736,0.00022191,2]
[363070716,1748566258514,-264.15,0.00022191,2]
[363070717,1748566258542,-173.62974264,0.00022191,2]
[363070718,1748566258552,-420.0,0.00022191,2]
[363070719,1748566258564,-632.24,0.00022191,2]
[363070720,1748566258578,-1258.81,0.00022191,2]
[363070721,1748566258595,-42.08462239,0.00022191,2]
[363070722,1748566259447,-420.0,0.00021917,2]
[363070723,1748566259457,-1155.0,0.00022124,2]
[363070724,1748566259466,-1927.49537761,0.00022191,2]
[363070725,1748566259475,-7208.94,0.00022191,2]
[363070726,1748566259484,-420.0,0.00022191,2]
[363070727,1748566259494,-420.0,0.00022191,2]
[363070728,1748566259503,-420.0,0.00022191,2]
[363070729,1748566259512,-420.0,0.00022191,2]
[363070730,1748566259521,-420.0,0.00022191,2]
[363070731,1748566259530,-2936.98,0.00022191,2]
[363070732,1748566259539,-420.0,0.00022191,2]
[363070733,1748566259548,-420.0,0.00022191,2]
[363070734,1748566259558,-420.0,0.00022191,2]
[363070735,1748566259567,-420.0,0.00022191,2]
[363070736,1748566259576,-1450.91,0.00022191,2]
[363070737,1748566259586,-3433.29,0.00022191,2]
[363070738,1748566259598,-420.0,0.00022191,2]
[363070739,1748566259607,-1601.91,0.00022191,2]
[363070740,1748566259616,-876.52,0.00022191,2]
[363070741,1748566259629,-1236.87,0.00022191,2]
[363070742,1748566259639,-483.29,0.00022191,2]
[363070743,1748566259648,-599.85668667,0.00022191,2]
[363070744,1748566259660,-99.79331333,0.00022191,2]
[363070745,1748566259669,-2607.36560902,0.00022191,2]
[363070746,1748566259680,-5892.56439098,0.00022191,2]
[363070747,1748566259690,-713.86,0.00022191,2]
[363070748,1748566259700,-3585.09,0.00022191,2]
[363070749,1748566259709,-420.0,0.00022191,2]
[363070750,1748566259718,-631.6,0.00022191,2]
[363070751,1748566259727,-2697.8180807,0.00022191,2]
[363070752,1748566259738,-568.7119193,0.00022191,2]
[363070753,1748566259747,-420.0,0.00022191,2]
[363070754,1748566259755,-386.0095351,0.00022191,2]
[363070755,1748566259767,-33.9904649,0.00022191,2]
[363070756,1748566259776,-783.16,0.00022191,2]
[363070757,1748566260001,-900.9788851,0.00022191,2]
[363070758,1748566260013,-106.1411149,0.00022191,2]
[363070759,1748566260026,-420.0,0.00022191,2]
[363070760,1748566260038,-420.0,0.00022191,2]
[363070761,1748566260047,-8.7944197,0.00022191,2]
[363070762,1748566260102,-2114.12797531,0.00022191,2]
[363070763,1748566260114,-82.41760499,0.00022191,2]
[363070764,1748566260126,-151.0,0.00022191,7]
[363070765,1748566260136,-325.35740123,0.00022191,2]
[363070766,1748566260229,-3737.31259877,0.00022191,2]
[363070767,1748566260239,-300.0,0.00022191,2]
[363070768,1748566260248,-955.23,0.00022191,2]
[363070769,1748566260258,-4613.83,0.00022191,2]
[363070770,1748566260267,-651.69,0.00022191,2]
[363070771,1748566260277,-420.0,0.00022191,2]
[363070772,1748566260287,-484.42938057,0.00022191,2]
[363070773,1748566260297,-420.0,0.00022191,2]
[363070774,1748566260307,-451.23,0.00022191,2]
[363070775,1748566260316,-1422.26340409,0.00022191,2]
[363070776,1748566260471,-266.58125291,0.00022191,2]
[363070777,1748566260482,-3034.505343,0.00022191,2]
[363070778,1748566260491,-1905.74,0.00022191,2]
[363070779,1748566260500,-420.0,0.00022191,2]
[363070780,1748566260509,-957.09,0.00022191,2]
[363070781,1748566260518,-420.0,0.00022191,2]
[363070782,1748566260526,-790.03,0.00022191,2]
[363070783,1748566260535,-9010.04,0.00022191,2]
[363070784,1748566260544,-420.0,0.00022191,2]
[363070785,1748566260554,-1211.81,0.00022191,2]
[363070786,1748566260562,-221.735082,0.00022191,7]
[363070787,1748566260571,-420.0,0.00022191,2]
[363070788,1748566260582,-3059.79,0.00022191,2]
[363070789,1748566260595,-1427.31,0.00022191,2]
[363070790,1748566260605,-1546.26,0.00022191,2]
[363070791,1748566260614,-450.65,0.00022191,2]
[363070792,1748566260625,-420.0,0.00022191,2]
[363070793,1748566260634,-420.0,0.00022191,2]
[363070794,1748566260643,-420.0,0.00022191,2]
[363070795,1748566260652,-472.8,0.00022191,2]
[363070796,1748566260661,-4048.71,0.00022191,2]
[363070797,1748566260670,-420.0,0.00022191,2]
[363070798,1748566260679,-420.0,0.00022191,2]
[363070799,1748566260689,-5224.5,0.00022191,2]
[363070800,1748566260698,-798.61,0.00022191,2]
[363070801,1748566260707,-1806.77,0.00022191,2]
[363070802,1748566260716,-420.0,0.00022191,2]
[363070803,1748566260725,-11109.75766923,0.00022191,2]
[363070804,1748566260737,-162423.27233077,0.00022191,2]
[363070805,1748566260747,-420.0,0.00022191,2]
[363070806,1748566260756,-420.0,0.00022191,2]
[363070807,1748566260766,-420.0,0.00022191,2]
[363070808,1748566260776,-420.0,0.00022191,2]
[363070809,1748566260785,-204.1888269,0.00022191,2]
[363070810,1748566260795,-807.87,0.00022191,2]
[363070811,1748566260805,-1867.03,0.00022191,2]
[363070812,1748566260815,-14157.24,0.00022191,2]
[363070813,1748566260825,-3790.39,0.00022191,2]
[363070814,1748566260839,-420.0,0.00022191,2]
[363070815,1748566260849,-4259.3,0.00022191,2]
[363070816,1748566260859,-420.0,0.00022191,2]
[363070817,1748566260868,-420.0,0.00022191,2]
[363070818,1748566260880,-420.0,0.00022191,2]
[363070819,1748566260890,-420.0,0.00022191,2]
[363070820,1748566260899,-629.39,0.00022191,2]
[363070821,1748566260909,-420.0,0.00022191,2]
[363070822,1748566260918,-420.0,0.00022191,2]
[363070823,1748566260928,-2164.73,0.00022191,2]
[363070824,1748566260938,-1413.54,0.00022191,2]
[363070825,1748566260948,-985.66,0.00022191,2]
[363070826,1748566260957,-420.0,0.00022191,2]
[363070827,1748566260967,-603.29,0.00022191,2]
[363070828,1748566260980,-6657.52,0.00022191,2]
[363070829,1748566260990,-9966.66,0.00022191,2]
[363070830,1748566260999,-770.68,0.00022191,2]
[363070831,1748566261010,-420.0,0.00022191,2]
[363070832,1748566261019,-420.0,0.00022191,2]
[363070833,1748566261029,-458.14154823,0.00022191,2]
[363070834,1748566261039,-420.0,0.00022191,2]
[363070835,1748566261048,-420.0,0.00022191,2]
[363070836,1748566261059,-1166.91,0.00022191,2]
[363070837,1748566261068,-420.0,0.00022191,2]
[363070838,1748566261078,-420.0,0.00022191,2]
[363070839,1748566261088,-4030.6,0.00022191,2]
[363070840,1748566261099,-106.34286345,0.00022191,2]
[363070841,1748566261113,-577.18754956,0.00022191,2]
[363070843,1748566381352,-184.38850823,0.00021368,2]
[363070844,1748566385261,-20.61149177,0.00021368,2]
[363070845,1748566385585,179.38850823,0.00021817,2]
[363070855,1748566543484,152.17,0.00013699,2]
[363070865,1748566730875,-217.2626987,0.00020966,2]
[363070870,1748566760589,906.22,0.00019027,2]
[363070874,1748566775073,-200.0,0.00020966,2]
[363070886,1748566881154,133262.59806956,0.00025,120]
[363070887,1748566881203,916737.40193044,0.00025,120]
[363070891,1748566966646,243.6,0.00019178,2]
[363070923,1748567323546,200.0,0.0001,2]
[363070983,1748567432087,-2335.801884,0.00020392,2]
[363070984,1748567432097,-1512.21,0.00020495,2]
[363070985,1748567432108,-200.0,0.00020518,2]
[363070986,1748567432118,-151.0,0.00020548,2]
[363070987,1748567432128,-151.0,0.0002055,2]
[363070988,1748567432138,-151.0,0.00020558,2]
[363070989,1748567432148,-200.0,0.00020576,2]
[363070990,1748567432157,-500.0,0.00020644,2]
[363070991,1748567432168,-200.0,0.00020671,2]
[363070992,1748567432178,-2092.25,0.00020699,2]
[363070993,1748567432188,-174.11,0.00020797,2]
[363070994,1748567432198,-1200.0,0.00020854,2]
[363070995,1748567432208,-1000.0,0.00020855,2]
[363070996,1748567432222,-1500.0,0.00020913,2]
[363070997,1748567432232,-162.380719,0.00020913,2]
[363070998,1748567432241,-312.53,0.00020931,2]
[363070999,1748567432251,-300.0,0.00020965,2]
[363071000,1748567432261,-18640.1773013,0.00020966,2]
[363071001,1748567432271,-190.27,0.00020966,2]
[363071002,1748567432282,-190.27,0.00021071,2]
[363071003,1748567432292,-355.0000957,0.00021084,2]
[363071004,1748567432378,-2214.0799043,0.00021084,2]
[363071005,1748567432388,-1986.0386557,0.00021155,2]
[363071017,1748567432569,-1660.3813443,0.00021155,2]
[363071019,1748567432580,-648.16312423,0.00021165,2]
[363071021,1748567432589,-207.4,0.00021165,2]
[363071023,1748567432599,-642.15553147,0.00021291,2]
[363071569,1748567438054,-264.06446853,0.00021291,2]
[363071571,1748567438063,-900.0,0.000214,7]
[363071573,1748567438074,-1431.93553147,0.000215,7]
[363071579,1748567438113,-368.06446853,0.000215,7]
[363071581,1748567438123,-2700.0,0.000216,7]
[363071582,1748567438133,-882.0,0.00021658,2]
[363071584,1748567438142,-280.08,0.00021658,2]
[363071587,1748567438151,-947.679,0.00021658,2]
[363071589,1748567438161,-4066.0,0.00021658,2]
[363071590,1748567438171,-6926.0,0.00021658,2]
[363071593,1748567438181,-3600.0,0.000217,7]
[363071595,1748567438193,-195.19,0.00021704,2]
[363071597,1748567438203,-4500.0,0.000218,7]
[363071599,1748567438213,-151.0,0.00021804,2]
[363071601,1748567438225,-1115.157653,0.00021804,2]
[363071603,1748567438236,-263.7801,0.00021808,2]
[363071605,1748567438246,-31788.4709,0.00021817,2]
[363071607,1748567438256,-169.0706662,0.00021817,2]
[363071609,1748567438265,-9238.16171195,0.00021817,2]
[363071611,1748567438275,-161.41357888,0.00021817,2]
[363071613,1748567438284,-156.25191989,0.00021817,2]
[363071615,1748567438293,-9238.1617119,0.00021847,2]
[363071617,1748567438303,-2889.35593542,0.00021873,2]
[363071619,1748567438312,-9238.1617119,0.00021878,2]
[363071621,1748567438322,-205.0,0.00021881,2]
[363071623,1748567438332,-900.0,0.000219,7]
[363071625,1748567438342,-574.143,0.000219,2]
[363071627,1748567438351,-3043.76046371,0.000219,2]
[363071629,1748567438360,-3043.7604636,0.000219,2]
[363071631,1748567438370,-3043.7604636,0.000219,2]
[363071633,1748567438379,-3043.7604636,0.000219,2]
[363071635,1748567438388,-3043.7604636,0.000219,2]
[363071637,1748567438397,-3043.7604636,0.000219,2]
[363071639,1748567438407,-3043.7604636,0.000219,2]
[363071641,1748567438416,-3043.7604636,0.00021907,2]
[363071643,1748567438425,-2067.16,0.00021907,2]
[363071645,1748567438434,-205.92692677,0.00021907,2]
[363071647,1748567438444,-9238.1617119,0.00021908,2]
[363071649,1748567438453,-150.0,0.00021914,3]
[363071651,1748567438462,-150.0,0.00021915,3]
[363071653,1748567438475,-182.10084367,0.00021916,2]
[363071655,1748567438484,-541.86101675,0.00021916,2]
[363071657,1748567438494,-152.35371609,0.00021916,2]
[363071659,1748567438503,-500.0,0.00021916,2]
[363071661,1748567438512,-150.0,0.00021916,3]
[363071663,1748567438522,-850.0,0.00021917,2]
[363071665,1748567438531,-420.0,0.00021917,2]
[363071667,1748567438542,-420.0,0.00021917,2]
[363071669,1748567438552,-420.0,0.00021917,2]
[363071671,1748567438563,-420.0,0.00021917,2]
[363071673,1748567438572,-420.0,0.00021917,2]
[363071675,1748567438581,-322.90339594,0.00021917,2]
[363071677,1748567438591,-420.0,0.00021917,2]
[363071679,1748567438600,-487.62550488,0.00021917,2]
[363071681,1748567438610,-420.0,0.00021917,2]
[363071683,1748567438619,-217.01777814,0.00021917,2]
[363071685,1748567438628,-420.0,0.00021917,2]
[363071689,1748567438637,-420.0,0.00021917,2]
[363071692,1748567438647,-1680.74235,0.00021917,2]
[363071695,1748567438655,-1800.005119,0.00021917,2]
[363071698,1748567438664,-549.0,0.00021917,2]
[363071701,1748567438673,-420.0,0.00021917,2]
[363071703,1748567438683,-720.79,0.00021917,2]
[363071705,1748567438692,-420.0,0.00021917,2]
[363071707,1748567438701,-156.963551,0.00021917,2]
[363071709,1748567438710,-548.36,0.00021917,2]
[363071711,1748567438722,-420.0,0.00021917,2]
[363071713,1748567438731,-420.0,0.00021917,2]
[363071715,1748567438740,-971.12,0.00021917,2]
[363071717,1748567438750,-566.41,0.00021917,2]
[363071719,1748567438759,-420.0,0.00021917,2]
[363071721,1748567438768,-420.0,0.00021917,2]
[363071723,1748567438777,-420.0,0.00021917,2]
[363071725,1748567438786,-420.0,0.00021917,2]
[363071727,1748567438796,-420.0,0.00021917,2]
[363071729,1748567438806,-420.0,0.00021917,2]
[363071731,1748567438815,-420.0,0.00021917,2]
[363071733,1748567438825,-541.2,0.00021917,2]
[363071735,1748567438834,-420.0,0.00021917,2]
[363071737,1748567438843,-420.0,0.00021917,2]
[363071739,1748567438851,-420.0,0.00021917,2]
[363071741,1748567438861,-420.0,0.00021917,2]
[363071743,1748567438870,-420.63871711,0.00021917,2]
[363071745,1748567438880,-420.0,0.00021917,2]
[363071747,1748567438889,-420.0,0.00021917,2]
[363071749,1748567438898,-420.0,0.00021917,2]
[363071751,1748567438907,-420.0,0.00021917,2]
[363071753,1748567438917,-420.0,0.00021917,2]
[363071755,1748567438926,-424.06924675,0.00021917,2]
[363071757,1748567438935,-500.0,0.00021917,2]
[363071759,1748567438944,-500.0,0.00021917,2]
[363071761,1748567438954,-534.61,0.00021917,2]
[363071763,1748567438963,-500.0,0.00021917,2]
[363071765,1748567438975,-420.0,0.00021917,2]
[363071767,1748567438984,-501.84826263,0.00021917,2]
[363071769,1748567438998,-380.42466268,0.00021917,2]
[363071771,1748567439007,-313.86049158,0.00021917,2]
[363071773,1748567439016,-422.79257365,0.00021917,2]
[363071775,1748567439026,-420.0,0.00021917,2]
[363071777,1748567439035,-536.49985645,0.00021917,2]
[363071780,1748567439046,-500.0,0.00021917,2]
[363071781,1748567439055,-500.0,0.00021917,2]
[363071782,1748567439064,-1096.86,0.00021917,2]
[363071783,1748567439075,-288.30206679,0.00021917,2]
[363071784,1748567439085,-420.0,0.00021917,2]
[363071785,1748567439094,-420.0,0.00021917,2]
[363071786,1748567439103,-420.0,0.00021917,2]
[363071787,1748567439112,-565.06,0.00021917,2]
[363071788,1748567439121,-420.0,0.00021917,2]
[363071789,1748567439130,-420.0,0.00021917,2]
[363071790,1748567439139,-420.0,0.00021917,2]
[363071791,1748567439148,-420.0,0.00021917,2]
[363071792,1748567439157,-420.0,0.00021917,2]
[363071794,1748567439167,-420.0,0.00021917,2]
[363071796,1748567439176,-420.0,0.00021917,2]
[363071798,1748567439186,-213.23799594,0.00021917,2]
[363071800,1748567439195,-420.0,0.00021917,2]
[363071802,1748567439204,-420.0,0.00021917,2]
[363071804,1748567439218,-420.0,0.00021917,2]
[363071806,1748567439228,-420.0,0.00021917,2]
[363071808,1748567439239,-164.2793136,0.00021917,2]
[363071810,1748567439248,-420.0,0.00021917,2]
[363071811,1748567439257,-667.22,0.00021917,2]
[363071813,1748567439267,-469.9,0.00021917,2]
[363071815,1748567439277,-420.0,0.00021917,2]
[363071818,1748567439287,-420.0,0.00021917,2]
[363071820,1748567439297,-463.2,0.00021917,2]
[363071822,1748567439307,-428.37540705,0.00021917,2]
[363071824,1748567439316,-420.0,0.00021917,2]
[363071826,1748567439325,-420.0,0.00021917,2]
[363071828,1748567439335,-420.0,0.00021917,2]
[363071830,1748567439345,-420.0,0.00021917,2]
[363071832,1748567439354,-422.35197297,0.00021917,2]
[363071834,1748567439363,-420.0,0.00021917,2]
[363071836,1748567439373,-422.85209029,0.00021917,2]
[363071838,1748567439382,-423.84936121,0.00021917,2]
[363071840,1748567439391,-422.24349411,0.00021917,2]
[363071842,1748567439400,-420.0,0.00021917,2]
[363071844,1748567439409,-420.0,0.00021917,2]
[363071846,1748567439418,-420.0,0.00021917,2]
[363071848,1748567439427,-500.0,0.00021917,2]
[363071850,1748567439437,-500.0,0.00021917,2]
[363071852,1748567439447,-500.0,0.00021917,2]
[363071854,1748567439456,-420.0,0.00021917,2]
[363071856,1748567439467,-420.0,0.00021917,2]
[363071858,1748567439477,-420.0,0.00021917,2]
[363071860,1748567439486,-592.76,0.00021917,2]
[363071862,1748567439496,-420.0,0.00021917,2]
[363071864,1748567439506,-422.6066787,0.00021917,2]
[363071866,1748567439516,-955.91,0.00021917,2]
[363071868,1748567439526,-420.0,0.00021917,2]
[363071870,1748567439535,-617.17,0.00021917,2]
[363071872,1748567439544,-420.0,0.00021917,2]
[363071874,1748567439554,-420.0,0.00021917,2]
[363071876,1748567439563,-420.0,0.00021917,2]
[363071878,1748567439573,-420.0,0.00021917,2]
[363071880,1748567439582,-154.526181,0.00021917,2]
[363071882,1748567439592,-152.88847,0.00021917,2]
[363071884,1748567439601,-446.5152984,0.00021917,2]
[363071886,1748567439611,-783.2,0.00021917,2]
[363071888,1748567439621,-471.5,0.00021917,2]
[363071890,1748567439630,-420.0,0.00021917,2]
[363071892,1748567439639,-420.0,0.00021917,2]
[363071894,1748567439648,-420.0,0.00021917,2]
[363071896,1748567439658,-431.22,0.00021917,2]
[363071898,1748567439668,-420.0,0.00021917,2]
[363071900,1748567439678,-420.0,0.00021917,2]
[363071902,1748567439688,-420.0,0.00021917,2]
[363071904,1748567439697,-420.0,0.00021917,2]
[363071906,1748567439707,-1526.99,0.00021917,2]
[363071908,1748567439719,-420.0,0.00021917,2]
[363071910,1748567439729,-2751.32,0.00021917,2]
[363071912,1748567439738,-601.31,0.00021917,2]
[363071915,1748567439747,-420.0,0.00021917,2]
[363071918,1748567439756,-546.58,0.00021917,2]
[363071920,1748567439766,-784.88,0.00021917,2]
[363071922,1748567439775,-420.0,0.00021917,2]
[363071924,1748567439784,-655.74,0.00021917,2]
[363071926,1748567439793,-420.0,0.00021917,2]
[363071929,1748567439803,-420.0,0.00021917,2]
[363071932,1748567439812,-426.77164527,0.00021917,2]
[363071934,1748567439822,-720.96,0.00021917,2]
[363071936,1748567439831,-1000.0,0.00021917,2]
[363071938,1748567439841,-420.0,0.00021917,2]
[363071970,1748567440106,-424.96859261,0.00021917,2]
[363071972,1748567440117,-420.0,0.00021917,2]
[363071974,1748567440128,-500.0,0.00021917,2]
[363071976,1748567440137,-749.94,0.00021917,2]
[363071978,1748567440148,-420.0,0.00021917,2]
[363071980,1748567440158,-420.0,0.00021917,2]
[363071982,1748567440169,-420.0,0.00021917,2]
[363071984,1748567440178,-420.0,0.00021917,2]
[363071986,1748567440188,-420.0,0.00021917,2]
[363071988,1748567440197,-556.49,0.00021917,2]
[363071990,1748567440207,-420.0,0.00021917,2]
[363071992,1748567440220,-482.56132451,0.00021917,2]
[363071994,1748567440229,-420.0,0.00021917,2]
[363071996,1748567440238,-421.163188,0.00021917,2]
[363071998,1748567440248,-289.71875285,0.00021917,2]
[363072000,1748567440258,-1011.91,0.00021917,2]
[363072002,1748567440268,-420.0,0.00021917,2]
[363072004,1748567440278,-2017.22,0.00021917,2]
[363072007,1748567440288,-2438.4,0.00021917,2]
[363072008,1748567440298,-420.0,0.00021917,2]
[363072010,1748567440307,-420.0,0.00021917,2]
[363072013,1748567440317,-420.0,0.00021917,2]
[363072015,1748567440327,-257.55236012,0.00021917,2]
[363072017,1748567440336,-537.47,0.00021917,2]
[363072019,1748567440346,-221.45597609,0.00021917,2]
[363072020,1748567440355,-420.0,0.00021917,2]
[363072022,1748567440364,-250.02871901,0.00021917,2]
[363072024,1748567440374,-641.52,0.00021917,2]
[363072026,1748567440383,-420.0,0.00021917,2]
[363072028,1748567440392,-788.66,0.00021917,2]
[363072030,1748567440401,-443.17396323,0.00021917,2]
[363072032,1748567440411,-420.0,0.00021917,2]
[363072034,1748567440420,-1445.45,0.00021917,2]
[363072036,1748567440430,-420.0,0.00021917,2]
[363072038,1748567440439,-194.56451737,0.00021917,2]
[363072040,1748567440449,-608.9,0.00021917,2]
[363072042,1748567440458,-420.0,0.00021917,2]
[363072044,1748567440473,-420.0,0.00021917,2]
[363072046,1748567440481,-420.0,0.00021917,2]
[363072048,1748567440490,-420.0,0.00021917,2]
[363072050,1748567440499,-420.0,0.00021917,2]
[363072052,1748567440508,-784.36,0.00021917,2]
[363072054,1748567440519,-420.0,0.00021917,2]
[363072056,1748567440528,-1811.35,0.00021917,2]
[363072058,1748567440538,-422.85972222,0.00021917,2]
[363072060,1748567440547,-332.82190791,0.00021917,2]
[363072062,1748567440557,-420.0,0.00021917,2]
[363072064,1748567440566,-420.0,0.00021917,2]
[363072066,1748567440575,-423.65598072,0.00021917,2]
[363072068,1748567440584,-819.77,0.00021917,2]
[363072070,1748567440594,-420.0,0.00021917,2]
[363072072,1748567440603,-420.0,0.00021917,2]
[363072074,1748567440612,-421.47576786,0.00021917,2]
[363072076,1748567440621,-420.0,0.00021917,2]
[363072078,1748567440631,-434.62,0.00021917,2]
[363072080,1748567440640,-488.14,0.00021917,2]
[363072083,1748567440650,-1139.91,0.00021917,2]
[363072084,1748567440659,-421.84590564,0.00021917,2]
[363072087,1748567440669,-423.68682617,0.00021917,2]
[363072088,1748567440678,-420.0,0.00021917,2]
[363072090,1748567440687,-420.0,0.00021917,2]
[363072092,1748567440696,-422.70375871,0.00021917,2]
[363072094,1748567440706,-420.0,0.00021917,2]
[363072096,1748567440718,-583.21,0.00021917,2]
[363072098,1748567440727,-436.04,0.00021917,2]
[363072100,1748567440736,-420.0,0.00021917,2]
[363072103,1748567440747,-424.72548549,0.00021917,2]
[363072104,1748567440755,-420.0,0.00021917,2]
[363072107,1748567440765,-1699.8,0.00021917,2]
[363072108,1748567440774,-420.0,0.00021917,2]
[363072112,1748567440784,-1075.53,0.00021917,2]
[363072114,1748567440793,-420.0,0.00021917,2]
[363072117,1748567440802,-1169.54,0.00021917,2]
[363072119,1748567440811,-420.0,0.00021917,2]
[363072124,1748567440821,-420.0,0.00021917,2]
[363072127,1748567440830,-420.0,0.00021917,2]
[363072131,1748567440839,-420.0,0.00021917,2]
[363072134,1748567440849,-420.0,0.00021917,2]
[363072137,1748567440858,-420.0,0.00021917,2]
[363072140,1748567440867,-420.0,0.00021917,2]
[363072143,1748567440876,-426.98074725,0.00021917,2]
[363072145,1748567440886,-420.0,0.00021917,2]
[363072147,1748567440895,-420.0,0.00021917,2]
[363072149,1748567440904,-513.45485487,0.00021917,2]
[363072152,1748567440914,-518.71,0.00021917,2]
[363072155,1748567440923,-550.86,0.00021917,2]
[363072158,1748567440932,-420.0,0.00021917,2]
[363072161,1748567440941,-418.94,0.00021917,2]
[363072164,1748567440951,-420.0,0.00021917,2]
[363072167,1748567440960,-420.0,0.00021917,2]
[363072170,1748567440971,-1109.6,0.00021917,2]